bitfinex/quotes_ETHUSD_20240926
["timestamp","ask_amount","ask_price","bid_price","bid_amount"]
[1727365538753,4.50982,2662.5,2661.9,3.7567]
[1727365538961,3.75601,2662.4,2661.7,7.51379]
[1727365539169,3.75601,2662.4,2661.3,3.75751]
[1727365539170,0.09391011,2662.4,2661.5,3.75725]
[1727365539445,3.75636,2662.2,2661.5,3.75715]
[1727365539654,3.75666,2662.0,2661.5,3.75715]
[1727365539810,0.7835,2661.9,2661.3,3.75742]
[1727365540016,0.7835,2661.9,2661.5,3.75726]
[1727365541218,0.7835,2661.9,2661.3,3.75748]
[1727365541219,3.75686,2661.8,2661.3,3.75748]
[1727365541533,0.7835,2661.9,2661.6,3.75704]
[1727365541853,4.14966549,2662.2,2661.9,3.75662]
[1727365541854,0.39328549,2662.2,2661.9,3.75662]
[1727365542155,0.39328549,2662.2,2662.1,3.75643]
[1727365542335,0.39328549,2662.2,2661.9,3.75664]
[1727365542541,0.39328549,2662.2,2662.1,3.75643]
[1727365543258,3.75523,2663.0,2662.4,3.75599]
[1727365543413,3.75533,2662.9,2662.4,3.75599]
[1727365543734,3.75546,2662.8,2662.3,3.75603]
[1727365543910,3.75523,2663.0,2662.4,3.7559]
[1727365544113,4.130753,2663.0,2662.5,3.75579]
[1727365544338,3.75523,2663.0,2662.5,3.75579]
[1727365544783,0.7512,2662.9,2662.5,3.75579]
[1727365545364,0.7512,2662.9,2662.1,4.507699]
[1727365545365,0.7512,2662.9,2662.1,0.751299]
[1727365545566,0.7512,2662.9,2662.6,3.7556]
[1727365545851,0.7512,2662.9,2662.1,0.751299]
[1727365545852,0.7512,2662.9,2662.4,7.51182]
[1727365546144,4.50658,2662.9,2662.4,3.7559]
[1727365546341,4.957238,2662.9,2662.3,3.75614]
[1727365546578,8.712668,2662.9,2662.3,3.75614]
[1727365546745,4.957238,2662.9,2662.3,3.75614]
[1727365546939,4.957238,2662.9,2662.2,3.75622]
[1727365546940,3.75544,2662.8,2662.2,3.75622]
[1727365547142,4.6267078,2662.8,2662.2,7.51241]
[1727365547380,4.6267078,2662.8,2662.2,3.75619]
[1727365547593,0.8712678,2662.8,2662.3,3.75612]
[1727365547746,0.8712678,2662.8,2662.2,3.75619]
[1727365547942,0.8712678,2662.8,2662.3,3.75611]
[1727365548259,1.46332478,2662.7,2661.7,0.8232]
[1727365548441,0.7512,2662.9,2662.5,3.75575]
[1727365548943,0.7512,2662.9,2662.7,3.75557]
[1727365549483,1.00593896,2663.3,2662.2,0.7872]
[1727365549691,1.00593896,2663.3,2662.9,3.7552]
[1727365549897,1.00593896,2663.3,2663.0,3.75515]
[1727365550090,1.00593896,2663.3,2662.9,3.7552]
[1727365550091,1.00593896,2663.3,2663.1,3.75494]
[1727365550261,1.00593896,2663.3,2662.9,3.75523]
[1727365550262,1.00593896,2663.3,2662.9,3.75522]
[1727365550773,1.00593896,2663.3,2663.0,3.75516]
[1727365550948,1.00593896,2663.3,2663.2,3.75488]
[1727365551274,1.00593896,2663.3,2663.1,3.75501]
[1727365551656,1.00593896,2663.3,2663.2,3.75488]
[1727365552673,1.00593896,2663.3,2663.2,4.58528]
[1727365552880,0.0610186,2663.5,2663.4,3.75459]
[1727365553275,3.75343,2664.3,2663.8,3.75396]
[1727365553455,3.75343,2664.3,2663.6,3.75421]
[1727365553649,0.2137,2664.1,2663.7,3.75416]
[1727365553979,103.96684,2664.5,2663.9,3.75381]
[1727365554144,107.78312408,2664.5,2663.7,3.75411]
[1727365554347,3.75319,2664.4,2663.8,3.75394]
[1727365554659,3.75319,2664.4,2663.7,3.75411]
[1727365554660,3.75349,2664.2,2663.7,3.75409]
[1727365554854,3.7534,2664.3,2663.8,3.75391]
[1727365555081,3.7534,2664.3,2663.7,3.75409]
[1727365555562,3.7539,2663.9,2663.4,3.75456]
[1727365555762,0.37539,2663.9,2663.6,3.75421]
[1727365555960,8.05713,2664.2,2663.6,3.7542]
[1727365556156,8.05711,2664.2,2663.6,7.50843]
[1727365556388,6.96703,2664.3,2663.8,3.75389]
[1727365557401,107.56942408,2664.5,2663.6,3.75421]
[1727365557402,100.0,2664.5,2664.1,3.75352]
[1727365557684,100.0,2664.5,2664.1,3.75361]
[1727365557886,100.0,2664.5,2664.0,3.75367]
[1727365558093,103.75306,2664.5,2664.0,3.75367]
[1727365558252,103.75313,2664.5,2663.9,3.75376]
[1727365558594,100.0,2664.5,2663.6,4.60066219]
[1727365558956,0.2137,2664.4,2663.8,3.75402]
[1727365559150,7.72023,2664.4,2663.9,3.75389]
[1727365559357,3.75334,2664.3,2663.8,3.75399]
[1727365559558,3.96695,2664.4,2663.7,3.75413]
[1727365559754,3.75345,2664.3,2663.7,4.207573]
[1727365559987,100.0,2664.5,2664.0,3.75367]
[1727365560291,100.0,2664.5,2663.6,4.53491]
[1727365560506,4.02998408,2664.4,2663.8,3.75391]
[1727365560860,3.75376,2664.0,2663.4,4.5671]
[1727365561055,4.12382224,2664.4,2663.6,3.75424]
[1727365561056,3.75374,2664.1,2663.6,3.75424]
[1727365561278,3.75374,2664.1,2663.7,0.07507558]
[1727365561465,3.96692,2664.4,2663.9,3.75387]
[1727365561665,3.7534,2664.3,2663.7,3.75409]
[1727365561888,3.75355,2664.2,2663.5,3.75435]
[1727365562098,3.75357,2664.2,2663.5,3.75435]
[1727365562308,3.75366,2664.1,2663.6,3.75423]
[1727365562458,7.50715,2664.2,2663.6,3.75423]
[1727365562658,3.75356,2664.2,2663.6,3.75431]
[1727365563046,3.75355,2664.2,2663.6,3.75425]
[1727365563208,3.75347,2664.2,2663.7,3.75417]
[1727365563498,3.75399,2663.9,2663.2,3.75487]
[1727365563670,0.2137,2664.1,2663.4,3.75459]
[1727365563858,3.75383,2664.0,2663.4,3.75459]
[1727365564056,3.96697,2664.4,2663.7,3.75407]
[1727365564382,3.96697,2664.4,2663.3,0.8162]
[1727365564383,0.2137,2665.1,2664.4,3.75319]
[1727365564586,0.2137,2665.1,2664.4,4.56939]
[1727365564587,95.85680914,2664.5,2664.4,4.56939]
[1727365564785,90.14922648,2664.5,2664.4,7.56939]
[1727365564993,86.667967,2664.5,2664.4,4.56939]
[1727365565563,86.667967,2664.5,2664.4,8.11939]
[1727365566168,76.834767,2664.5,2664.4,8.11939]
[1727365566817,76.834767,2664.5,2664.4,7.56939]
[1727365567679,76.834767,2664.5,2664.4,4.56939]
[1727365569475,75.44228659,2664.5,2664.4,4.56939]
[1727365570076,75.44228659,2664.5,2664.4,8.93945219]
[1727365570315,75.44228659,2664.5,2664.4,8.38945219]
[1727365570684,75.44228659,2664.5,2664.4,11.93945219]
[1727365571092,75.44228659,2664.5,2664.4,11.38945219]
[1727365572686,75.44228659,2664.5,2664.4,11.93945219]
[1727365573428,75.44228659,2664.5,2664.4,12.31675219]
[1727365573429,71.96194024,2664.5,2664.4,12.31675219]
[1727365573579,61.96664039,2664.5,2664.4,12.31675219]
[1727365573776,17.38013586,2664.5,2664.4,35.88681438]
[1727365574031,10.77775993,2664.5,2664.4,34.23737739]
[1727365574316,10.77775993,2664.5,2664.4,32.06675219]
[1727365575033,7.99366122,2664.5,2664.4,32.06675219]
[1727365575383,6.01777029,2664.5,2664.4,38.03310677]
[1727365575721,6.01777029,2664.5,2664.4,31.25055219]
[1727365575873,6.01777029,2664.5,2664.4,31.79256234]
[1727365576274,0.0008,2665.2,2664.4,31.79256234]
[1727365576514,0.0008,2665.2,2665.1,3.7522]
[1727365576726,0.0008,2665.2,2665.1,10.94956219]
[1727365577076,0.0008,2665.2,2665.1,11.49956219]
[1727365577279,0.005,2666.6,2665.0,3.75233]
[1727365577280,0.005,2666.6,2666.0,6.75093]
[1727365577479,0.005,2666.6,2666.0,3.75093]
[1727365577480,0.8252,2666.6,2666.0,3.75093]
[1727365577685,0.8252,2666.6,2666.4,3.75034]
[1727365577926,0.8591949,2666.6,2666.5,3.75023]
[1727365578079,0.0389949,2666.6,2666.5,3.75023]
[1727365578280,0.0389949,2666.6,2666.5,3.82521872]
[1727365578678,0.0389949,2666.6,2666.5,3.75023]
[1727365578679,0.005,2666.6,2666.5,3.75023]
[1727365579424,0.005,2666.6,2666.5,6.75023]
[1727365579576,0.005,2666.6,2666.5,7.12753]
[1727365579781,0.7771,2667.6,2666.5,7.12753]
[1727365579782,0.7771,2667.6,2667.5,3.74882]
[1727365580089,0.7614,2668.1,2667.5,3.74878]
[1727365580294,4.54197,2668.3,2667.5,7.49752]
[1727365580513,3.74799,2668.1,2667.5,3.74878]
[1727365580712,0.44818268,2668.0,2667.4,3.74889]
[1727365580885,0.06353062,2668.0,2667.5,3.74879]
[1727365581083,0.06353062,2668.0,2667.9,3.74826]
[1727365581542,0.06353062,2668.0,2667.9,6.74826]
[1727365581690,0.035,2668.2,2668.1,3.74798]
[1727365581917,0.7675,2668.1,2667.6,3.74855]
[1727365582226,0.7675,2668.1,2666.9,3.0]
[1727365582412,4.58756219,2668.1,2667.5,3.74871]
[1727365582615,4.58756219,2668.1,2667.6,3.74859]
[1727365582930,0.46225622,2668.0,2667.5,3.74881]
[1727365583109,0.46225622,2668.0,2667.4,3.74894]
[1727365583451,0.46225622,2668.0,2666.9,6.7496]
[1727365583452,0.46225622,2668.0,2667.5,3.74881]
[1727365583658,0.7675,2668.1,2667.6,3.74856]
[1727365583857,0.7675,2668.1,2667.9,3.74825]
[1727365584060,0.035,2668.2,2667.9,3.74825]
[1727365584355,0.035,2668.2,2667.3,3.74902]
[1727365584356,0.035,2668.2,2668.0,3.74812]
[1727365584654,0.035,2668.2,2667.8,3.74838]
[1727365584963,0.035,2668.2,2667.6,3.74866]
[1727365585248,0.035,2668.2,2667.2,0.3773]
[1727365585249,0.035,2668.2,2667.8,3.74838]
[1727365585641,0.035,2668.2,2667.6,3.74867]
[1727365585828,0.035,2668.2,2667.7,3.74842]
[1727365586017,0.035,2668.2,2667.8,3.74837]
[1727365587149,0.035,2668.2,2668.0,3.74803]
[1727365587356,0.035,2668.2,2667.7,3.74843]
[1727365587560,0.035,2668.2,2668.0,3.74802]
[1727365587716,0.035,2668.2,2668.1,3.74798]
[1727365588071,0.592108,2668.5,2668.4,3.74756]
[1727365588735,0.592108,2668.5,2668.2,3.74772]
[1727365588957,0.592108,2668.5,2668.4,3.74756]
[1727365589251,19.13,2668.7,2668.4,3.74756]
[1727365589473,1.99179,2668.7,2667.5,0.3773]
[1727365589632,1.99179,2668.7,2667.4,3.74894]
[1727365589633,0.7505,2668.6,2667.4,3.74894]
[1727365589975,0.7505,2668.0,2667.3,3.74909]
[1727365590132,0.7505,2668.0,2667.5,3.74877]
[1727365590335,0.7505,2668.0,2667.6,3.74867]
[1727365590537,0.7505,2668.0,2667.4,3.74887]
[1727365590839,0.7505,2668.0,2667.3,3.74905]
[1727365591179,1.200336,2668.0,2667.3,3.74902]
[1727365591471,0.7505,2668.0,2667.3,3.74902]
[1727365591641,0.7505,2668.0,2667.1,3.74937]
[1727365591848,3.7484,2667.8,2666.9,3.74956]
[1727365592057,3.74869,2667.6,2666.9,3.74956]
[1727365592257,4.49868,2668.0,2667.1,3.74938]
[1727365592464,0.55,2667.9,2667.1,3.74938]
[1727365592642,3.74841,2667.8,2667.2,3.74924]
[1727365592846,4.29827,2667.9,2667.2,3.74924]
[1727365593046,0.55,2667.9,2667.1,3.74938]
[1727365593356,3.7484,2667.8,2667.1,3.74938]
[1727365593528,0.7774,2667.0,2666.1,4.12805]
[1727365593735,0.7774,2667.0,2665.4,3.7517]
[1727365593736,3.74968,2666.9,2666.2,3.75065]
[1727365594187,3.74968,2666.9,2666.3,3.75051]
[1727365594328,3.74968,2666.9,2666.0,3.75086]
[1727365594530,4.52694,2667.0,2666.2,3.75051]
[1727365594755,0.7774,2667.0,2665.7,0.3773]
[1727365595079,3.74969,2666.9,2666.2,3.75061]
[1727365595230,3.74969,2666.9,2666.3,3.75051]
[1727365595432,0.7774,2667.0,2666.4,3.75028]
[1727365595666,0.7774,2667.0,2666.5,3.75019]
[1727365595829,0.8307,2667.5,2665.7,4.12865]
[1727365596035,0.8307,2667.5,2666.9,3.74962]
[1727365596263,4.57961,2667.5,2666.8,3.74967]
[1727365596474,4.57961,2667.5,2666.0,3.75081]
[1727365596475,0.8307,2667.0,2666.0,3.75084]
[1727365596683,0.8307,2667.0,2665.3,3.75185]
[1727365596684,3.82006219,2666.2,2665.3,3.75185]
[1727365596888,0.8307,2665.3,2664.5,3.75299]
[1727365597055,3.82006219,2664.9,2664.5,3.75294]
[1727365597381,0.7594,2664.4,2663.7,3.75412]
[1727365597560,0.7594,2664.4,2663.8,3.75393]
[1727365597561,3.82006219,2664.0,2663.8,3.75393]
[1727365597759,3.82006219,2664.0,2663.3,3.75465]
[1727365597760,0.7594,2663.9,2663.3,3.75465]
[1727365597961,0.7594,2663.9,2663.0,0.0606189]
[1727365598165,3.75274,2664.8,2663.0,0.0606189]
[1727365598166,3.82006219,2664.7,2663.8,3.75403]
[1727365598341,8.22102544,2665.0,2664.2,3.75346]
[1727365598545,3.7525,2664.9,2664.0,3.75373]
[1727365598852,8.22102544,2665.0,2664.1,3.75358]
[1727365599077,8.22102544,2665.0,2664.0,3.75373]
[1727365599078,3.75252,2664.9,2664.0,3.75373]
[1727365599441,3.75252,2664.9,2664.1,3.75359]
[1727365599661,4.46866544,2665.0,2664.2,3.75334]
[1727365599874,8.22112544,2665.0,2664.1,3.75359]
[1727365600182,8.22113544,2665.0,2664.0,3.75374]
[1727365600387,3.75253,2664.9,2664.0,3.75374]
[1727365600681,3.75265,2664.8,2663.9,3.75388]
[1727365600836,3.75265,2664.8,2664.0,3.75372]
[1727365601038,0.809,2664.7,2664.0,3.75372]
[1727365601278,4.46866544,2664.6,2663.9,3.0]
[1727365601479,8.22159544,2664.6,2663.9,3.0]
[1727365601783,8.22159544,2664.6,2663.6,3.75427]
[1727365601784,8.22159544,2664.6,2663.7,6.75417]
[1727365601985,3.75305,2664.5,2663.7,6.75417]
[1727365602340,8.22159544,2664.6,2663.7,6.75417]
[1727365602635,8.22159544,2664.6,2663.9,3.0]
[1727365602636,4.46866544,2664.6,2663.9,3.0]
[1727365602873,0.809,2664.7,2664.0,3.7537]
[1727365603059,8.22156544,2664.6,2663.9,3.0]
[1727365603640,4.46866544,2664.2,2663.5,3.0]
[1727365603975,4.46866544,2664.6,2663.9,6.75388]
[1727365604182,4.46866544,2664.6,2664.0,3.75374]
[1727365604684,4.46866544,2664.6,2663.9,6.75386]
[1727365605386,8.22161544,2664.6,2663.9,3.0]
[1727365605748,8.22161544,2664.6,2663.5,3.75445]
[1727365605749,4.46866544,2664.2,2663.5,3.75445]
[1727365605944,4.46866544,2664.2,2663.2,0.3773]
[1727365605945,4.46866544,2664.2,2663.6,3.75428]
[1727365606169,4.46866544,2664.2,2663.7,3.0]
[1727365606566,8.22221544,2664.2,2663.4,3.75459]
[1727365606788,3.75401,2663.9,2663.2,3.75478]
[1727365606954,3.75388,2664.0,2663.3,3.75471]
[1727365607163,3.75388,2664.0,2663.2,3.75478]
[1727365607691,3.75388,2664.0,2663.2,3.75477]
[1727365607847,0.8245,2664.1,2663.5,3.75444]
[1727365608250,4.57812,2664.1,2663.5,3.75444]
[1727365608448,4.57812,2664.1,2663.4,3.0]
[1727365608645,3.75383,2664.0,2663.4,6.75457]
[1727365608888,3.75376,2664.0,2663.4,3.0]
[1727365609047,4.57819,2664.1,2663.4,6.75455]
[1727365609242,4.57819,2664.1,2663.4,3.0]
[1727365609546,4.57819,2664.1,2663.4,6.75447]
[1727365609747,4.57819,2664.1,2663.4,3.0]
[1727365609985,4.46866544,2663.8,2663.1,3.75496]
[1727365610191,0.7658,2663.4,2662.9,3.75521]
[1727365610547,0.7658,2663.4,2662.7,3.75549]
[1727365610753,4.52041,2663.4,2662.8,3.75544]
[1727365611282,0.7658,2663.4,2662.9,3.75528]
[1727365611646,0.7658,2663.4,2663.0,3.75515]
[1727365611849,0.7658,2663.4,2662.9,3.75528]
[1727365612157,0.7658,2663.4,2662.9,3.75521]
[1727365612494,4.5204,2663.4,2662.8,3.0]
[1727365612649,0.7658,2663.4,2662.9,3.75529]
[1727365612988,0.7658,2663.4,2663.0,3.75516]
[1727365613356,0.8289,2663.8,2663.1,0.07508578]
[1727365613583,0.8289,2664.2,2663.6,3.7543]
[1727365613950,0.8289,2664.2,2663.8,3.75392]
[1727365614775,0.8289,2664.2,2663.9,0.07506424]
[1727365614950,0.8289,2664.2,2663.9,3.75385]
[1727365615346,0.8289,2664.6,2664.0,3.82881252]
[1727365615639,0.8289,2664.6,2664.2,3.75346]
[1727365615751,0.8289,2664.6,2664.3,0.07505321]
[1727365616278,3.75313,2664.5,2664.0,3.0]
[1727365616486,0.8289,2664.6,2664.1,3.82864699]
[1727365616656,0.8289,2664.6,2664.2,3.75341]
[1727365616849,0.8289,2664.6,2664.3,3.75323]
[1727365617355,0.8289,2664.6,2664.4,3.8281488]
[1727365617553,0.8237,2665.6,2665.3,3.75182]
[1727365617766,0.8237,2666.0,2665.4,3.75169]
[1727365617999,0.8237,2666.0,2665.2,3.75198]
[1727365618203,3.7513,2665.8,2665.0,3.75223]
[1727365618390,3.75144,2665.7,2665.1,6.75211]
[1727365618695,4.57471,2666.0,2665.4,3.75175]
[1727365618696,0.8237,2666.0,2665.4,3.75175]
[1727365618851,0.8237,2666.0,2665.5,3.75154]
[1727365619196,15.96977402,2666.1,2665.7,3.75134]
[1727365619438,15.96977402,2666.1,2665.9,3.75098]
[1727365619555,15.96977402,2666.1,2665.7,7.50256]
[1727365619757,15.96977402,2666.1,2665.8,3.75121]
[1727365619954,15.96977402,2666.1,2665.5,7.50315]
[1727365620204,15.96977402,2666.1,2665.5,3.75155]
[1727365620493,3.75107,2666.0,2665.4,3.75177]
[1727365620990,3.75123,2665.8,2665.2,3.75206]
[1727365621289,5.25566544,2665.9,2665.3,3.75191]
[1727365621503,0.787,2665.9,2665.7,3.75135]
[1727365621670,0.787,2665.9,2665.3,3.0]
[1727365621853,0.787,2665.9,2665.2,3.75195]
[1727365622057,3.75138,2665.7,2665.0,3.75226]
[1727365622257,3.75175,2665.5,2664.8,6.75262]
[1727365622569,3.75122,2665.8,2665.0,3.75222]
[1727365622748,3.75173,2665.5,2664.9,3.75247]
[1727365622950,3.75182,2665.4,2664.9,3.75247]
[1727365623236,3.75182,2665.4,2664.7,3.75265]
[1727365623682,7.37820939,2665.9,2664.7,3.75265]
[1727365623683,3.75158,2665.6,2664.7,3.75265]
[1727365623855,3.75178,2665.4,2664.7,3.75265]
[1727365624257,0.8204,2665.2,2664.7,3.75265]
[1727365624494,0.8204,2665.2,2664.7,7.50534]
[1727365624698,0.8204,2665.2,2664.5,3.75297]
[1727365625056,3.75248,2664.9,2664.3,3.75324]
[1727365625260,3.75244,2665.0,2664.3,3.75324]
[1727365625455,3.75244,2665.0,2664.4,3.75305]
[1727365625687,3.75244,2665.0,2664.5,3.75303]
[1727365625913,3.75244,2665.0,2664.0,0.7936]
[1727365625914,3.75286,2664.7,2664.0,3.75361]
[1727365626223,7.50576,2664.7,2664.1,3.75359]
[1727365626423,3.7532,2664.4,2663.6,1.1363]
[1727365626728,0.7754,2664.6,2664.3,3.7533]
[1727365627050,4.584883,2665.0,2664.4,3.75318]
[1727365627051,0.7629,2665.0,2664.4,3.75318]
[1727365627183,0.7629,2665.0,2664.6,3.75289]
[1727365627525,4.51531,2665.0,2664.4,3.75309]
[1727365627724,3.7525,2664.9,2664.4,3.75309]
[1727365628054,3.75284,2664.7,2664.0,7.50734]
[1727365628186,3.75291,2664.6,2664.0,3.75364]
[1727365628380,3.75337,2664.3,2663.8,3.75395]
[1727365628687,4.52737,2664.3,2663.7,3.75408]
[1727365628881,4.46866544,2664.7,2664.0,3.75373]
[1727365628882,4.52684,2664.7,2664.0,3.75373]
[1727365629123,0.774,2664.7,2664.0,3.75372]
[1727365629414,0.774,2664.7,2664.2,3.75347]
[1727365629415,4.52685,2664.7,2664.2,3.75347]
[1727365629785,3.75342,2664.3,2663.8,3.75392]
[1727365629984,2.9700981,2664.3,2663.6,3.75422]
[1727365630209,2.9700981,2664.3,2663.7,3.75409]
[1727365630405,3.75356,2664.2,2663.6,3.75422]
[1727365630682,0.8249,2664.0,2663.4,3.75451]
[1727365630957,3.75306,2664.5,2663.5,3.7544]
[1727365630958,3.75341,2664.3,2663.5,3.7544]
[1727365631120,3.75341,2664.3,2663.5,3.75316903]
[1727365631431,3.75364,2664.1,2663.5,3.75316903]
[1727365631583,8.22160544,2664.6,2663.5,3.75316903]
[1727365631777,3.75334,2664.3,2663.5,3.75316903]
[1727365631980,3.75286,2664.7,2664.0,3.75366]
[1727365632191,3.75286,2664.7,2664.1,3.82858469]
[1727365632404,7.50518,2664.9,2664.2,3.75344]
[1727365632591,3.7529,2664.6,2663.9,3.75379]
[1727365632822,3.75267,2664.8,2664.1,3.7536]
[1727365633001,3.75267,2664.8,2664.1,3.75351]
[1727365633190,3.75267,2664.8,2664.2,0.07505385]
[1727365633499,3.75267,2664.8,2664.2,3.82845385]
[1727365633700,8.22110544,2665.0,2664.3,3.75319]
[1727365634022,0.76,2664.9,2664.5,3.75296]
[1727365634187,0.7913,2665.3,2664.6,0.07504369]
[1727365634389,0.7913,2665.3,2665.1,3.7521]
[1727365634692,8.21992544,2665.8,2665.2,0.07502994]
[1727365634693,0.7913,2665.6,2665.2,0.07502994]
[1727365634890,0.7913,2665.6,2665.1,3.7521]
[1727365635097,4.54283,2665.6,2664.9,7.50477]
[1727365635439,4.54283,2665.6,2665.0,3.75231]
[1727365635793,3.75177,2665.5,2664.9,7.50477]
[1727365636605,3.75177,2665.5,2664.9,3.75238]
[1727365637339,5.02807854,2665.5,2664.9,3.75243]
[1727365637544,3.75179,2665.4,2664.8,3.7526]
[1727365637694,5.02807854,2665.5,2664.9,3.75248]
[1727365637894,3.75177,2665.5,2664.9,3.75248]
[1727365638137,0.7913,2665.6,2664.9,3.75248]
[1727365638295,0.7913,2665.6,2665.1,3.75218]
[1727365638505,4.54287,2665.6,2665.0,3.75234]
[1727365638692,0.7913,2665.6,2665.2,3.75205]
[1727365638894,0.7913,2665.6,2665.0,3.7523]
[1727365638895,4.54282,2665.6,2665.0,3.7523]
[1727365639131,4.54282,2665.6,2665.0,7.50454]
[1727365639344,0.7913,2665.6,2665.1,3.7522]
[1727365639693,0.7913,2665.6,2665.2,3.75202]
[1727365639901,0.7913,2665.6,2665.1,3.7522]
[1727365640099,0.7913,2665.6,2665.0,7.5045]
[1727365640100,4.5428,2665.6,2665.0,7.5045]
[1727365640397,3.80416079,2665.2,2664.6,3.75283]
[1727365640595,7.55629079,2665.2,2664.6,3.75283]
[1727365640797,3.75222,2665.1,2664.6,3.75283]
[1727365641055,0.7987,2665.0,2664.4,3.75307]
[1727365641210,0.7987,2665.0,2664.6,3.75284]
[1727365641416,0.7987,2665.0,2664.4,7.50617]
[1727365641417,4.55106,2665.0,2664.4,7.50617]
[1727365641626,3.7525,2664.9,2664.4,3.75307]
[1727365641936,3.7525,2664.9,2664.2,3.75336]
[1727365642123,3.7525,2664.9,2664.4,3.75312]
[1727365642341,0.7987,2665.0,2664.6,3.75284]
[1727365642556,0.7987,2665.0,2664.9,3.75248]
[1727365642851,19.72078402,2666.0,2665.0,3.75223]
[1727365642852,0.7839,2665.5,2665.0,3.75223]
[1727365643151,0.7839,2665.5,2665.1,3.75213]
[1727365643351,0.7839,2665.5,2665.0,3.75232]
[1727365643352,4.53556,2665.5,2665.0,3.75232]
[1727365643815,1.612608,2665.5,2665.1,0.07503369]
[1727365644155,3.752,2665.3,2664.5,3.75299]
[1727365644371,5.41676879,2665.5,2664.6,3.75283]
[1727365644372,3.80416079,2665.2,2664.6,3.75283]
[1727365644662,3.75207,2665.2,2664.5,3.75295]
[1727365645166,3.80416079,2665.4,2664.6,3.75289]
[1727365645317,0.7839,2665.5,2664.7,0.07503601]
[1727365645512,0.7839,2665.5,2665.1,3.75219]
[1727365645758,0.7839,2665.5,2665.1,3.75218]
[1727365645924,0.7839,2665.5,2665.3,3.75181]
[1727365646833,0.7933,2665.9,2665.7,3.75133]
[1727365647031,0.7933,2665.9,2665.8,3.75121]
[1727365647215,15.96977402,2666.0,2665.9,3.75107]
[1727365647559,15.96977402,2666.0,2665.9,6.75107]
[1727365647763,15.96977402,2666.0,2665.9,7.54637]
[1727365648617,15.96977402,2666.0,2665.9,6.75107]
[1727365648820,15.96977402,2666.0,2665.9,3.75107]
[1727365649059,15.96977402,2666.0,2665.8,3.75118]
[1727365649225,15.96977402,2666.0,2665.6,6.7514]
[1727365649431,2.3512774,2665.9,2664.6,3.75287]
[1727365649769,3.75123,2665.8,2665.1,3.75208]
[1727365649954,3.75123,2665.8,2665.0,3.7523]
[1727365649955,3.75131,2665.8,2665.0,3.7523]
[1727365650154,2.3512774,2665.9,2665.0,3.75225]
[1727365650155,0.8242,2665.6,2665.0,3.75225]
[1727365650361,4.5758,2665.6,2664.8,3.75253]
[1727365650558,8.2132842,2665.3,2664.6,3.75278]
[1727365651146,0.7791,2665.2,2664.4,3.75313]
[1727365651347,0.7791,2665.2,2664.0,4.54488]
[1727365651348,4.53123,2665.2,2664.0,0.7912]
[1727365651654,1.83210514,2665.8,2663.8,5.83530431]
[1727365651655,4.53172,2664.8,2663.8,5.83530431]
[1727365651835,3.75303,2664.6,2663.8,5.83530431]
[1727365652237,4.53172,2664.8,2664.0,3.75373]
[1727365652847,0.7791,2664.8,2663.8,2.08137431]
[1727365653040,0.7791,2664.8,2664.3,3.7533]
[1727365653373,0.7791,2664.8,2664.6,3.75278]
[1727365653587,0.7791,2664.8,2664.2,3.75336]
[1727365654079,0.7791,2664.8,2664.0,3.75369]
[1727365654231,3.7528,2664.7,2664.0,3.75369]
[1727365654437,0.09382688,2664.7,2664.0,3.75369]
[1727365654678,0.7791,2664.8,2664.6,3.7528]
[1727365654974,3.75179,2665.4,2664.8,3.75259]
[1727365654975,0.8308,2665.4,2664.8,3.75259]
[1727365655134,0.8308,2665.4,2664.8,7.50512]
[1727365655341,0.8308,2665.4,2664.9,0.05480342]
[1727365655673,0.8308,2665.4,2665.0,3.75226]
[1727365655831,0.8308,2665.4,2664.8,3.75256]
[1727365656034,1.289038,2665.4,2664.8,3.75256]
[1727365656470,0.8308,2665.4,2664.8,3.75256]
[1727365656783,0.8308,2665.4,2665.3,3.75192]
[1727365657073,0.8004,2665.7,2665.1,3.75211]
[1727365657296,0.8004,2665.7,2665.2,3.75195]
[1727365657501,15.96977402,2665.9,2665.8,3.75121]
[1727365657856,15.96977402,2665.9,2665.8,6.75121]
[1727365658292,15.96977402,2665.9,2665.8,7.53081]
[1727365658602,14.57839073,2665.9,2665.8,7.53081]
[1727365658894,13.18839073,2665.9,2665.8,7.53081]
[1727365660397,9.01153344,2665.9,2665.8,7.53081]
[1727365660965,9.01153344,2665.9,2665.8,3.75121]
[1727365662089,9.01153344,2665.9,2665.8,4.50291]
[1727365662358,9.01153344,2665.9,2665.8,7.50291]
[1727365662559,9.01153344,2665.9,2665.8,7.57791544]
[1727365662777,9.01153344,2665.9,2665.8,7.50291]
[1727365663370,9.01153344,2665.9,2665.8,8.05291]
[1727365663902,9.01153344,2665.9,2665.8,7.50291]
[1727365664261,9.01153344,2665.9,2665.8,8.05291]
[1727365664464,9.01153344,2665.9,2665.8,7.50291]
[1727365664757,9.01153344,2665.9,2665.8,3.75121]
[1727365668505,9.01153344,2665.9,2665.7,3.75135]
[1727365668665,9.01153344,2665.9,2665.8,3.75121]
[1727365668999,9.01153344,2665.9,2665.5,3.75153]
[1727365669202,9.01153344,2665.9,2665.6,3.75149]
[1727365669514,0.8203,2665.8,2665.4,3.75164]
[1727365669678,4.57188,2665.6,2664.8,3.75261]
[1727365669879,4.57188,2665.6,2664.9,3.75243]
[1727365669880,0.8203,2665.6,2664.9,3.75243]
[1727365670068,4.2182172,2665.5,2664.9,3.75243]
[1727365670462,4.2182172,2665.5,2664.9,3.7524]
[1727365670463,0.4665672,2665.5,2664.9,3.7524]
[1727365670764,0.765,2665.5,2664.6,3.75286]
[1727365670969,0.765,2665.5,2665.2,3.75199]